bitfinex/quotes_BTCUSD_20241229
["timestamp","ask_amount","ask_price","bid_price","bid_amount"]
[1735510711647,0.01678935,93440.0,93430.0,0.0778]
[1735510711939,0.01678935,93440.0,93433.0,0.003]
[1735510712139,0.01678935,93440.0,93430.0,0.0778]
[1735510713096,1.335772,93439.0,93433.0,0.001]
[1735510713512,1.335772,93439.0,93430.0,0.0778]
[1735510713921,1.335772,93439.0,93430.0,0.0788]
[1735510714125,1.335772,93439.0,93430.0,0.0808]
[1735510714366,1.335772,93439.0,93430.0,0.0778]
[1735510714751,1.335772,93439.0,93430.0,0.0818]
[1735510714949,0.318,93439.0,93430.0,0.0818]
[1735510715390,0.01678935,93440.0,93430.0,0.0788]
[1735510716255,0.01586081,93440.0,93430.0,0.0788]
[1735510716461,0.5403439,93448.0,93430.0,0.0778]
[1735510716632,1.41349571,93447.0,93430.0,0.0778]
[1735510716844,1.335772,93446.0,93430.0,0.0778]
[1735510717265,0.0471,93445.0,93430.0,0.0778]
[1735510717451,0.001,93440.0,93429.0,0.01591157]
[1735510717692,1.335772,93439.0,93429.0,0.01591157]
[1735510717920,1.335772,93444.0,93429.0,0.01591157]
[1735510718734,0.001,93440.0,93429.0,0.01591157]
[1735510718939,1.335772,93439.0,93429.0,0.01266412]
[1735510719298,0.18964606,93437.0,93429.0,0.01266412]
[1735510719515,1.335772,93436.0,93429.0,0.01266412]
[1735510720920,1.335772,93436.0,93429.0,0.01466412]
[1735510721729,1.236,93436.0,93429.0,0.01466412]
[1735510721933,0.305,93435.0,93429.0,0.01466412]
[1735510722302,0.20643738,93437.0,93429.0,0.01466412]
[1735510722530,0.394,93436.0,93430.0,0.0788]
[1735510722739,0.20643738,93437.0,93430.0,0.0788]
[1735510722943,0.20643738,93437.0,93436.0,0.0674281]
[1735510723147,0.25368455,93437.0,93436.0,0.0788]
[1735510723566,0.25368455,93437.0,93436.0,0.1462281]
[1735510723907,0.01679132,93437.0,93436.0,0.1462281]
[1735510724464,0.18969672,93441.0,93436.0,0.1462281]
[1735510724654,0.18969672,93441.0,93436.0,0.1472281]
[1735510724802,0.18969672,93441.0,93436.0,0.1482281]
[1735510725156,0.18969672,93443.0,93436.0,0.1482281]
[1735510725572,0.18969672,93443.0,93440.0,0.0674281]
[1735510725818,0.18969672,93443.0,93436.0,0.0798]
[1735510725819,0.18969672,93443.0,93442.0,0.1462281]
[1735510726350,0.18969672,93444.0,93443.0,0.0654281]
[1735510726772,0.18969672,93444.0,93443.0,0.07985091]
[1735510726955,0.18969672,93444.0,93443.0,0.16045091]
[1735510727527,0.18969672,93445.0,93443.0,0.1074281]
[1735510727664,0.18969672,93445.0,93444.0,0.1450281]
[1735510728263,0.0001706,93448.0,93444.0,0.1450281]
[1735510729296,0.0001706,93448.0,93444.0,0.0654281]
[1735510729502,0.0001706,93448.0,93447.0,0.0624281]
[1735510729952,0.0001706,93448.0,93447.0,0.07417091]
[1735510730802,0.0001706,93448.0,93447.0,0.0624281]
[1735510730975,0.0001706,93448.0,93447.0,0.0684281]
[1735510732383,0.0001706,93448.0,93447.0,0.1510281]
[1735510733070,0.0001706,93448.0,93447.0,0.2560844]
[1735510733274,0.0001706,93448.0,93447.0,0.25501442]
[1735510733497,0.0001706,93448.0,93447.0,0.30501586]
[1735510734087,0.0001706,93448.0,93447.0,0.29901586]
[1735510734281,0.0001706,93448.0,93447.0,0.24901442]
[1735510734484,0.0011706,93448.0,93447.0,0.25801442]
[1735510734927,0.0011706,93448.0,93447.0,0.24901442]
[1735510734928,0.0001706,93448.0,93447.0,0.24901442]
[1735510735084,0.0001706,93448.0,93447.0,0.25101442]
[1735510735511,0.0001706,93448.0,93447.0,0.24901442]
[1735510735943,0.0011706,93448.0,93447.0,0.30441586]
[1735510736310,0.0011706,93448.0,93447.0,0.31341586]
[1735510736450,0.0011706,93448.0,93447.0,0.26401442]
[1735510737074,0.21547709,93478.0,93470.0,0.0624281]
[1735510737274,0.042895,93472.0,93471.0,0.0624281]
[1735510737563,0.042895,93472.0,93470.0,0.0624281]
[1735510737768,0.016783,93477.0,93474.0,0.0624281]
[1735510737916,0.059678,93477.0,93474.0,0.0624281]
[1735510738361,0.059678,93477.0,93443.0,0.145]
[1735510738362,1.335772,93476.0,93458.0,0.0624281]
[1735510738572,0.0493,93475.0,93458.0,0.0624281]
[1735510738767,1.335772,93474.0,93458.0,0.0624281]
[1735510739564,1.335772,93474.0,93471.0,0.004]
[1735510739763,1.335772,93474.0,93453.0,0.0624281]
[1735510740187,1.335772,93474.0,93458.0,0.003]
[1735510740188,0.08177174,93473.0,93458.0,0.003]
[1735510740364,1.335772,93472.0,93453.0,0.0624281]
[1735510741389,1.335772,93472.0,93449.0,0.0624281]
[1735510741626,0.0774,93471.0,93445.0,0.0624281]
[1735510741772,1.335772,93470.0,93448.0,0.0624281]
[1735510741974,0.01678581,93465.0,93448.0,0.0624281]
[1735510742177,1.335772,93464.0,93448.0,0.0624281]
[1735510742370,1.335772,93464.0,93447.0,0.0624281]
[1735510742595,1.335772,93464.0,93428.0,8.54e-05]
[1735510742596,0.0486,93463.0,93440.0,0.0624281]
[1735510742862,0.737,93462.0,93445.0,0.0624281]
[1735510743743,0.81843121,93462.0,93443.0,0.0624281]
[1735510743943,1.335772,93461.0,93445.0,0.0624281]
[1735510744241,1.008,93461.0,93445.0,0.0624281]
[1735510744608,1.335772,93462.0,93445.0,0.0624281]
[1735510745018,0.0486,93463.0,93445.0,0.0624281]
[1735510745403,0.99,93462.0,93445.0,0.0624281]
[1735510745866,0.401,93462.0,93444.0,0.0624281]
[1735510746012,0.311,93462.0,93452.0,0.0624281]
[1735510746219,0.0486,93463.0,93453.0,0.0797]
[1735510746371,0.0496,93463.0,93453.0,0.0797]
[1735510746573,0.18989555,93462.0,93453.0,0.0797]
[1735510746778,1.52566755,93462.0,93445.0,0.0001706]
[1735510746999,1.284,93461.0,93451.0,0.0624281]
[1735510747204,0.01678645,93458.0,93451.0,0.0624281]
[1735510747404,0.109,93457.0,93451.0,0.0624281]
[1735510747770,0.29889555,93457.0,93451.0,0.0624281]
[1735510747967,0.114,93456.0,93445.0,0.0001706]
[1735510748463,0.0774,93455.0,93445.0,0.0001706]
[1735510748670,1.335772,93454.0,93445.0,0.0001706]
[1735510748882,0.0486,93453.0,93445.0,0.0001706]
[1735510749085,1.335772,93452.0,93445.0,0.0001706]
[1735510749306,0.03243275,93451.0,93445.0,0.0001706]
[1735510749689,1.335772,93450.0,93445.0,0.0001706]
[1735510751515,1.336772,93450.0,93445.0,0.0001706]
[1735510751786,1.335772,93449.0,93445.0,0.0001706]
[1735510752643,0.0486,93447.0,93445.0,0.0041706]
[1735510752847,1.335772,93446.0,93445.0,0.0001706]
[1735510753455,1.35256083,93446.0,93445.0,0.0001706]
[1735510753655,1.335772,93446.0,93445.0,0.0001706]
[1735510753856,0.413,93446.0,93445.0,0.0001706]
[1735510754006,0.558,93446.0,93445.0,0.0001706]
[1735510754794,0.559,93446.0,93445.0,0.0001706]
[1735510755690,0.56,93446.0,93445.0,0.0001706]
[1735510756507,0.57678862,93446.0,93445.0,0.0001706]
[1735510757423,0.24978862,93446.0,93445.0,0.0001706]
[1735510760706,0.48709967,93446.0,93445.0,0.0001706]
[1735510762842,0.50860967,93446.0,93445.0,0.0001706]
[1735510763065,0.48709967,93446.0,93445.0,0.0001706]
[1735510763990,0.24978862,93446.0,93445.0,0.0001706]
[1735510764202,0.233,93446.0,93445.0,0.0001706]
[1735510764844,0.47031105,93446.0,93445.0,0.0001706]
[1735510766082,0.233,93446.0,93445.0,0.0001706]
[1735510768210,0.315,93446.0,93445.0,0.0001706]
[1735510768820,0.33178989,93446.0,93445.0,0.0001706]
[1735510770778,0.51456179,93446.0,93445.0,0.0001706]
[1735510771338,1.05490569,93446.0,93445.0,0.0001706]
[1735510771733,0.0818,93440.0,93429.0,0.00903382]
[1735510771941,1.335772,93439.0,93429.0,0.00903382]
[1735510773270,0.28460166,93437.0,93429.0,0.00903382]
[1735510773472,1.335772,93436.0,93429.0,0.00903382]
[1735510773819,0.5403439,93435.0,93429.0,0.00903382]
[1735510774123,0.5403439,93433.0,93429.0,0.00903382]
[1735510774278,1.335772,93432.0,93429.0,0.00903382]
[1735510774998,0.23706532,93430.0,93429.0,0.00903382]
[1735510775216,1.40506532,93430.0,93429.0,0.00903382]
[1735510775444,0.23706532,93430.0,93429.0,0.00903382]
[1735510775791,1.176,93430.0,93429.0,0.00903382]
[1735510776237,1.176,93430.0,93429.0,0.01003382]
[1735510776671,1.335772,93431.0,93429.0,0.01003382]
[1735510777067,0.174,93431.0,93429.0,0.01003382]
[1735510777268,0.23706532,93432.0,93429.0,0.01003382]
[1735510778040,0.23706532,93432.0,93429.0,0.00903382]
[1735510778247,0.23706532,93432.0,93429.0,0.01003382]
[1735510778456,0.18956619,93438.0,93429.0,0.01003382]
[1735510778633,0.634,93437.0,93429.0,0.00903382]
[1735510778950,0.554,93437.0,93429.0,0.00903382]
[1735510779361,0.08100578,93437.0,93429.0,0.00903382]
[1735510779556,0.958,93436.0,93429.0,0.00903382]
[1735510779759,0.623,93436.0,93429.0,0.00903382]
[1735510779963,0.596,93436.0,93429.0,0.00903382]
[1735510781144,0.597,93436.0,93429.0,0.00429691]
[1735510781394,1.35649726,93435.0,93429.0,0.00429691]
[1735510781597,1.335772,93434.0,93429.0,0.00429691]
[1735510783172,1.336772,93434.0,93429.0,0.00429691]
[1735510783374,0.001,93434.0,93429.0,0.00429691]
[1735510783796,0.08200578,93434.0,93429.0,0.00429691]
[1735510784000,0.18956619,93433.0,93429.0,0.00429691]
[1735510785211,0.18956619,93431.0,93429.0,0.00429691]
[1735510786412,0.18956619,93430.0,93429.0,0.00529691]
[1735510787627,0.20635728,93430.0,93429.0,0.00429691]
[1735510788137,0.20635728,93430.0,93429.0,0.00529691]
[1735510788565,0.01679109,93430.0,93429.0,0.00529691]
[1735510789328,0.04308003,93430.0,93429.0,0.00529691]
[1735510791169,0.20696003,93430.0,93429.0,0.08849691]
[1735510791670,0.25385641,93430.0,93429.0,0.00529691]
[1735510792948,0.01679109,93430.0,93429.0,0.00529691]
[1735510793956,0.25385641,93430.0,93429.0,0.00529691]
[1735510794380,0.23706532,93430.0,93429.0,0.00529691]
[1735510794578,0.26169221,93430.0,93429.0,0.00529691]
[1735510795192,0.02462689,93430.0,93429.0,0.00529691]
[1735510795405,0.0001706,93433.0,93429.0,0.00529691]
[1735510796636,0.0001706,93433.0,93429.0,0.00429691]
[1735510800545,0.01696158,93433.0,93429.0,0.00429691]
[1735510805529,0.01696158,93433.0,93429.0,0.01129691]
[1735510805735,0.01796158,93433.0,93429.0,0.01129691]
[1735510806362,0.03115962,93432.0,93429.0,0.01129691]
[1735510807611,0.03115962,93432.0,93429.0,0.01429691]
[1735510807809,0.03115962,93432.0,93429.0,0.00729691]
[1735510808330,0.03215962,93432.0,93429.0,0.01429691]
[1735510808917,0.001,93432.0,93429.0,0.01429691]
[1735510809409,0.001,93432.0,93429.0,0.01129691]
[1735510809791,0.001,93432.0,93429.0,0.01429691]
[1735510813567,0.017793,93432.0,93429.0,0.01429691]
[1735510814568,0.04761125,93436.0,93429.0,0.01429691]
[1735510815128,1.350069,93435.0,93429.0,0.01429691]
[1735510815326,1.335772,93434.0,93429.0,0.01429691]
[1735510815493,1.57388265,93434.0,93429.0,0.01429691]
[1735510815843,1.57388265,93434.0,93429.0,0.00429691]
[1735510815844,0.23811065,93434.0,93429.0,0.00429691]
[1735510816016,0.23811065,93434.0,93429.0,0.00929691]
[1735510816165,0.23811065,93434.0,93429.0,0.00629691]
[1735510816566,0.23911065,93434.0,93429.0,0.01029691]
[1735510817014,0.23911065,93434.0,93429.0,0.01329691]
[1735510818557,0.23811065,93433.0,93429.0,0.01329691]
[1735510818779,0.25490364,93433.0,93429.0,0.01329691]
[1735510819320,0.25490364,93433.0,93429.0,0.01029691]
[1735510819321,0.01679299,93433.0,93429.0,0.01029691]
[1735510819526,0.01679299,93433.0,93429.0,0.01329691]
[1735510819975,0.01679299,93433.0,93429.0,0.00729691]
[1735510820365,0.25490364,93433.0,93429.0,0.00729691]
[1735510821349,0.23811065,93432.0,93429.0,0.00729691]
[1735510821724,0.23811065,93432.0,93429.0,0.01429691]
[1735510822421,0.23811065,93432.0,93429.0,0.00429691]
[1735510822637,0.23811065,93431.0,93429.0,0.00729691]
[1735510822824,0.23811065,93431.0,93429.0,0.01429691]
[1735510823456,0.23811065,93431.0,93429.0,0.01129691]
[1735510823657,0.25490364,93433.0,93429.0,0.00429691]
[1735510823866,0.25490364,93433.0,93432.0,0.0784]
[1735510824244,0.23811065,93433.0,93432.0,0.0784]
[1735510824445,0.0001706,93435.0,93432.0,0.0784]
[1735510825876,0.0001706,93435.0,93432.0,0.0834]
[1735510826885,0.0001706,93435.0,93432.0,0.0854]
[1735510827484,0.01696314,93435.0,93432.0,0.0854]
[1735510827896,0.8180158,93423.0,93422.0,0.0141384]
[1735510828056,2.16371805,93423.0,93422.0,0.01464816]
[1735510829213,2.05061805,93423.0,93422.0,0.01864816]
[1735510829492,2.16471805,93423.0,93422.0,0.01593142]
[1735510829739,2.11359834,93423.0,93422.0,0.01193142]
[1735510829917,2.05161805,93423.0,93422.0,0.01193142]
[1735510830367,2.05061805,93423.0,93422.0,0.01193142]
[1735510830774,2.05561805,93423.0,93422.0,0.01193142]
[1735510830977,0.71984605,93423.0,93422.0,0.01193142]
[1735510831201,2.05561805,93423.0,93422.0,0.01193142]
[1735510831401,2.07241455,93423.0,93422.0,0.01193142]
[1735510831795,0.6236158,93414.0,93390.0,0.00058938]
[1735510831939,0.6236158,93414.0,93389.0,0.0784]
[1735510831940,1.96983369,93414.0,93389.0,0.0784]
[1735510833180,1.97983369,93414.0,93413.0,0.0010854]
[1735510833696,2.06043369,93414.0,93413.0,0.0010854]
[1735510834396,2.06715196,93414.0,93413.0,0.0010854]
[1735510835934,2.06043369,93414.0,93413.0,0.0010854]
[1735510836441,2.16043369,93414.0,93413.0,0.0010854]
[1735510836684,0.0375719,93405.0,93381.0,0.00067468]
[1735510836885,0.0375719,93396.0,93361.0,0.1417281]
[1735510837084,0.0121941,93384.0,93362.0,0.05631822]
[1735510837290,1.335772,93383.0,93361.0,0.13561822]
[1735510837496,0.0168023,93379.0,93361.0,0.13561822]
[1735510837710,1.39501158,93378.0,93361.0,0.13561822]
[1735510837859,1.335772,93377.0,93361.0,0.13158439]
[1735510838066,0.04219155,93376.0,93361.0,0.13158439]
[1735510838267,1.335772,93375.0,93361.0,0.07526617]
[1735510838481,0.01305429,93374.0,93361.0,0.07541843]
[1735510838689,1.335772,93375.0,93361.0,0.00015226]
[1735510838690,0.01308297,93370.0,93361.0,0.00015226]
[1735510838881,0.01308297,93368.0,93347.0,0.05361343]
[1735510839083,1.39927542,93367.0,93351.0,0.00015286]
[1735510839285,1.39927542,93367.0,93361.0,0.001]
[1735510839286,1.36614523,93366.0,93361.0,0.001]
[1735510839520,1.335772,93365.0,93351.0,0.00015286]
[1735510839683,0.0136279,93364.0,93351.0,0.00015286]
[1735510839903,1.335772,93363.0,93361.0,0.002]
[1735510840103,0.01339844,93362.0,93361.0,0.001]
[1735510840286,1.34917044,93362.0,93361.0,0.001]
[1735510840483,1.34917044,93362.0,93351.0,0.00015286]
[1735510840704,0.792,93361.0,93351.0,0.00015286]
[1735510840886,0.01374264,93360.0,93352.0,0.0793]
[1735510841404,0.01374264,93360.0,93353.0,0.05361343]
[1735510841785,0.00671903,93359.0,93353.0,0.05361343]
[1735510842025,0.01374264,93358.0,93357.0,0.05361343]
[1735510842451,0.02046167,93358.0,93357.0,0.05361343]
[1735510843693,0.02046167,93358.0,93357.0,0.002]
[1735510843903,0.02046167,93358.0,93352.0,0.07801495]
[1735510844768,0.02046167,93358.0,93351.0,0.00015286]
[1735510844930,0.00671903,93357.0,93351.0,0.00015286]
[1735510845135,0.00671903,93357.0,93355.0,0.05361343]
[1735510845136,0.02057642,93357.0,93355.0,0.05361343]
[1735510845385,0.00671903,93356.0,93355.0,0.05361343]
[1735510845596,0.00671903,93356.0,93352.0,0.002]
[1735510845955,0.094918,93369.0,93354.0,0.05361343]
[1735510845956,0.02057642,93355.0,93354.0,0.05361343]
[1735510846932,0.02057642,93355.0,93354.0,0.12861343]
[1735510847089,0.02057642,93355.0,93354.0,0.077]
[1735510849689,0.02157642,93355.0,93354.0,0.077]
[1735510853349,0.02157642,93355.0,93354.0,0.0020854]
[1735510853553,0.02157642,93355.0,93349.0,0.12780527]
[1735510853740,0.02164718,93355.0,93349.0,0.12780527]
[1735510854283,0.00671903,93354.0,93349.0,0.05280527]
[1735510854428,0.01400082,93353.0,93349.0,0.05280527]
[1735510854637,0.02071985,93353.0,93349.0,0.05280527]
[1735510854838,0.02071985,93353.0,93350.0,0.075]
[1735510855272,0.00671903,93352.0,93350.0,0.075]
[1735510855474,0.01402951,93351.0,93350.0,0.075]
[1735510855707,0.4927895,93379.0,93350.0,0.075]
[1735510855893,0.001,93355.0,93350.0,0.075]
[1735510856095,0.014029,93366.0,93350.0,0.075]
[1735510856262,1.335772,93365.0,93350.0,0.075]
[1735510856458,0.001,93352.0,93350.0,0.075]
[1735510856677,0.04302187,93370.0,93350.0,0.078]
[1735510856911,1.335772,93369.0,93350.0,0.078]
[1735510857117,0.001,93355.0,93350.0,0.075]
[1735510857269,0.04302187,93370.0,93350.0,0.075]
[1735510857471,0.01680405,93360.0,93350.0,0.075]
[1735510857666,1.335772,93359.0,93350.0,0.075]
[1735510858136,1.335772,93359.0,93350.0,0.02350198]
[1735510858383,1.335772,93359.0,93350.0,0.0127713]
[1735510858926,0.001,93352.0,93350.0,0.0127713]
[1735510859127,0.01680405,93360.0,93350.0,0.0147713]
[1735510859358,1.335772,93359.0,93350.0,0.0147713]
[1735510859563,1.335772,93359.0,93350.0,0.01055496]
[1735510859763,1.335772,93359.0,93350.0,0.00855496]
[1735510859953,1.335772,93359.0,93350.0,0.00955496]
[1735510860159,0.0485,93351.0,93350.0,0.001]
[1735510860363,0.06530405,93360.0,93350.0,0.001]
[1735510860645,1.335772,93359.0,93350.0,0.001]
[1735510862413,1.335772,93359.0,93345.0,0.05280527]
[1735510862616,0.001,93351.0,93346.0,0.0777]
[1735510862817,0.001,93351.0,93350.0,0.003]
[1735510862997,0.01680405,93360.0,93350.0,0.003]
[1735510863215,1.335772,93359.0,93350.0,0.003]
[1735510863424,1.335772,93359.0,93352.0,0.05280527]
[1735510863899,1.335772,93359.0,93352.0,0.05180527]
[1735510864294,1.037885,93359.0,93352.0,0.05180527]
[1735510864540,1.037885,93358.0,93352.0,0.05180527]
[1735510864755,1.037885,93369.0,93352.0,0.05180527]
[1735510865607,0.10937301,93370.0,93356.0,0.05180527]
[1735510865608,0.04302187,93370.0,93356.0,0.05180527]
[1735510865782,0.938,93369.0,93356.0,0.05180527]
[1735510866192,0.269,93369.0,93358.0,0.05180527]
[1735510866406,0.313,93369.0,93358.0,0.05180527]
[1735510866608,0.309,93368.0,93358.0,0.05180527]
[1735510866840,0.0001708,93359.0,93358.0,0.05180527]
[1735510867225,0.0001708,93359.0,93358.0,0.13290527]
[1735510868617,0.00689047,93359.0,93358.0,0.13290527]
[1735510870009,0.00789047,93359.0,93358.0,0.13390527]
[1735510870211,0.00789047,93359.0,93358.0,0.13490527]
[1735510870384,0.00689047,93359.0,93358.0,0.13390527]
[1735510870602,0.00689047,93359.0,93358.0,0.1521058]
[1735510870983,0.00789047,93359.0,93358.0,0.13390527]
[1735510871608,0.00789047,93359.0,93358.0,0.13790527]
[1735510872843,0.00789047,93359.0,93358.0,0.0861]
[1735510873079,0.00789047,93359.0,93358.0,0.13790527]
[1735510874218,0.00789047,93359.0,93358.0,0.18600527]
[1735510874486,0.00789047,93359.0,93358.0,0.18707622]
[1735510874918,0.00789047,93359.0,93358.0,0.28999159]
[1735510875106,0.00789047,93359.0,93358.0,0.28599159]
[1735510875681,0.00789047,93359.0,93358.0,0.18200527]
[1735510876095,0.00789047,93359.0,93358.0,0.28599159]
[1735510876304,0.00689047,93359.0,93358.0,0.48899159]
[1735510876750,0.00789047,93359.0,93358.0,0.49799159]
[1735510876927,0.00689047,93359.0,93358.0,0.48499159]
[1735510877131,0.00689047,93359.0,93358.0,0.53849075]
[1735510877326,0.00789047,93359.0,93358.0,0.54749075]
[1735510877820,0.00689047,93359.0,93358.0,0.53349075]
[1735510878024,0.00789047,93359.0,93358.0,0.54849075]
[1735510878172,0.00889047,93359.0,93358.0,0.54849075]
[1735510878571,0.00889047,93359.0,93358.0,0.44849075]
[1735510878774,7.087e-05,93370.0,93358.0,0.44849075]
[1735510879028,7.087e-05,93370.0,93369.0,0.05180527]
[1735510879222,7.087e-05,93370.0,93369.0,0.23629159]
[1735510880169,7.087e-05,93370.0,93369.0,0.23529159]
[1735510880586,7.087e-05,93370.0,93369.0,0.23429159]
[1735510881123,7.087e-05,93370.0,93369.0,0.23929159]
[1735510881258,7.087e-05,93370.0,93369.0,0.26322075]
[1735510881681,0.00107087,93370.0,93369.0,0.14430527]
[1735510883122,0.00107087,93370.0,93369.0,0.06380527]
[1735510883956,0.00107087,93370.0,93369.0,0.014]
[1735510884317,0.00107087,93370.0,93369.0,0.06380527]
[1735510888530,0.00107087,93370.0,93369.0,0.014]
[1735510888738,0.00107087,93370.0,93369.0,0.06380527]
[1735510891369,0.14344788,93370.0,93369.0,0.06380527]
[1735510891527,0.150167,93370.0,93369.0,0.06380527]
[1735510892626,0.1503378,93370.0,93369.0,0.06380527]
[1735510893463,0.00796079,93370.0,93369.0,0.14030527]
[1735510894099,0.00796079,93370.0,93369.0,0.06380527]
[1735510895826,0.1503378,93370.0,93369.0,0.06380527]
[1735510897739,0.00796079,93370.0,93369.0,0.06380527]
[1735510899109,0.1503378,93370.0,93369.0,0.06380527]
[1735510899847,0.1549378,93370.0,93369.0,0.06380527]
[1735510902193,0.01256079,93370.0,93369.0,0.06380527]
[1735510902397,0.00584167,93370.0,93369.0,0.06380527]
[1735510902600,0.00584167,93370.0,93369.0,0.05880527]
[1735510903012,0.00484167,93370.0,93369.0,0.05180527]
[1735510903208,0.00584167,93370.0,93369.0,0.05880527]
[1735510904068,0.00584167,93370.0,93369.0,0.05680527]
[1735510904225,0.00584167,93370.0,93369.0,0.05689067]
[1735510904822,0.00484167,93370.0,93369.0,0.04989067]
[1735510905195,0.00584167,93370.0,93369.0,0.05789067]
[1735510905401,0.00484167,93370.0,93369.0,0.04989067]
[1735510906380,0.00484167,93370.0,93369.0,0.05189067]
[1735510906588,0.00584167,93370.0,93369.0,0.05889067]
[1735510906931,0.00584167,93370.0,93369.0,0.05689067]
[1735510907239,0.00584167,93370.0,93369.0,0.05889067]
[1735510909036,0.19567768,93370.0,93369.0,0.05889067]
[1735510909397,0.19467768,93370.0,93369.0,0.04989067]
[1735510909599,0.19567768,93370.0,93369.0,0.05689067]
[1735510909798,0.19567768,93370.0,93369.0,0.05889067]
[1735510910003,0.00584167,93370.0,93369.0,0.05889067]
[1735510911322,0.24313668,93370.0,93369.0,0.05889067]
[1735510912441,0.00584167,93370.0,93369.0,0.05889067]
[1735510917847,0.00584167,93370.0,93369.0,0.0090854]
[1735510918060,0.00584167,93370.0,93369.0,0.05889067]
[1735510919395,0.29059569,93370.0,93369.0,0.05889067]
[1735510919797,0.29059569,93370.0,93369.0,0.05551299]
[1735510920314,0.00584167,93370.0,93369.0,0.05551299]
[1735510923497,0.00124167,93370.0,93369.0,0.00110772]
[1735510923647,0.00124167,93370.0,93369.0,0.05091299]
[1735510923849,0.03152143,93370.0,93369.0,0.05091299]
[1735510924027,0.00124167,93370.0,93369.0,0.05091299]
[1735510927316,0.00124167,93370.0,93369.0,0.12801299]
[1735510928522,0.00124167,93370.0,93369.0,0.12809839]
[1735510931421,0.00124167,93370.0,93369.0,0.05099839]
[1735510933595,0.00124167,93370.0,93369.0,0.12809839]
[1735510935408,0.00072421,93370.0,93369.0,0.12809839]
[1735510935737,0.00072421,93370.0,93369.0,0.05099839]
[1735510936169,0.00744321,93370.0,93369.0,0.05099839]
[1735510936802,0.00072421,93370.0,93369.0,0.05099839]
[1735510939495,0.28597332,93376.0,93369.0,0.05099839]
[1735510939704,0.28597332,93376.0,93375.0,0.04980527]
[1735510939959,0.28597332,93376.0,93375.0,0.04880527]
[1735510940607,0.28597332,93376.0,93375.0,0.04780527]
[1735510940822,0.1232,93375.0,93369.0,0.0010854]
[1735510941561,0.28597332,93372.0,93369.0,0.0010854]
[1735510942183,0.30277516,93372.0,93369.0,0.0010854]
[1735510942625,0.28597332,93370.0,93369.0,8.54e-05]
[1735510943025,0.28597332,93370.0,93369.0,0.0030854]
[1735510943431,0.30277516,93372.0,93369.0,8.54e-05]
[1735510943736,0.04259752,93371.0,93369.0,0.0050854]
[1735510943938,0.04259752,93371.0,93369.0,0.0070854]
[1735510944229,0.28597332,93370.0,93369.0,0.0070854]
[1735510944444,0.28597332,93370.0,93369.0,0.0020854]
[1735510944617,0.28597332,93370.0,93369.0,8.54e-05]
[1735510945175,0.28597332,93370.0,93369.0,0.0050854]
[1735510945552,0.0977007,93375.0,93369.0,0.0050854]
[1735510946324,0.0977007,93375.0,93369.0,0.0070854]
[1735510946527,0.0977007,93375.0,93369.0,0.0020854]
[1735510946898,0.0977007,93375.0,93369.0,0.0030854]
[1735510947304,0.0977007,93375.0,93369.0,0.0040854]
[1735510947575,0.01680162,93374.0,93369.0,0.0040854]
[1735510947984,0.02825185,93374.0,93369.0,0.0040854]
[1735510948189,0.01680162,93374.0,93369.0,0.0040854]
[1735510949342,0.01680162,93374.0,93369.0,0.0030854]
[1735510949569,0.01680162,93374.0,93369.0,0.0040854]
[1735510949774,0.01680162,93374.0,93369.0,0.0010854]
[1735510950003,0.01680162,93374.0,93369.0,0.0050854]
[1735510950177,0.01680162,93374.0,93369.0,0.0040854]
[1735510950377,0.01780162,93374.0,93369.0,8.54e-05]
[1735510950641,0.01880162,93374.0,93369.0,8.54e-05]
[1735510953124,0.01897242,93374.0,93369.0,8.54e-05]
[1735510954360,0.0021708,93374.0,93369.0,8.54e-05]
[1735510954970,0.11092264,93377.0,93369.0,8.54e-05]
[1735510955182,1.037885,93376.0,93369.0,8.54e-05]
[1735510955373,0.0763,93375.0,93369.0,8.54e-05]
[1735510957014,0.0783,93375.0,93369.0,8.54e-05]
[1735510957553,0.01680279,93374.0,93369.0,8.54e-05]
[1735510959831,0.01780279,93374.0,93369.0,8.54e-05]
[1735510960037,0.01880279,93374.0,93369.0,8.54e-05]
[1735510962703,0.01780279,93374.0,93369.0,8.54e-05]
[1735510963219,0.01680279,93374.0,93369.0,8.54e-05]
[1735510964234,0.28585027,93379.0,93369.0,8.54e-05]
[1735510964377,1.037885,93378.0,93369.0,8.54e-05]
[1735510964795,0.0001706,93375.0,93369.0,8.54e-05]
[1735510966653,0.28585027,93370.0,93369.0,8.54e-05]
[1735510967838,0.28585027,93370.0,93369.0,0.0020854]
[1735510968321,0.28585027,93370.0,93369.0,0.0030854]
[1735510968529,0.28585027,93370.0,93369.0,0.00038631]
[1735510968736,0.30265262,93370.0,93369.0,0.00038631]
[1735510969723,0.30265262,93370.0,93369.0,0.002]
[1735510969917,0.30265262,93370.0,93369.0,0.001]
[1735510970111,0.01680235,93370.0,93369.0,0.002]
[1735510970318,0.01680235,93370.0,93369.0,0.001]
[1735510970934,0.01680235,93370.0,93358.0,0.04376136]
[1735510971144,0.01680235,93370.0,93358.0,0.04383223]
[1735510972022,0.23817912,93359.0,93358.0,0.02383223]
[1735510972353,0.23817912,93359.0,93358.0,0.01883223]
[1735510972811,0.25498195,93359.0,93358.0,0.01883223]
[1735510973436,0.01680283,93359.0,93358.0,0.01883223]
[1735510973841,0.01680283,93359.0,93358.0,0.02483223]
[1735510974206,0.23817912,93361.0,93358.0,0.02483223]
[1735510975310,0.23817912,93361.0,93358.0,0.02083223]
[1735510975711,0.23817912,93361.0,93358.0,0.02283223]
[1735510976150,0.23817912,93361.0,93358.0,0.02383223]
[1735510976348,0.042949,93360.0,93358.0,0.02383223]
[1735510977163,0.042949,93360.0,93358.0,0.02283223]
[1735510977566,0.042949,93360.0,93358.0,0.02483223]
[1735510978327,0.042949,93360.0,93358.0,0.02491753]
[1735510978836,0.042949,93360.0,93358.0,0.02091753]
[1735510979032,0.042949,93360.0,93358.0,0.02491753]
[1735510980396,0.28112812,93360.0,93358.0,0.02491753]
[1735510981672,0.29793115,93360.0,93358.0,0.02491753]
[1735510982661,0.32159015,93360.0,93358.0,0.02491753]
[1735510983039,0.08341103,93360.0,93358.0,0.02491753]
[1735510984212,0.066608,93360.0,93358.0,0.02491753]
[1735510991001,0.0667786,93360.0,93358.0,0.02491753]
[1735510991578,0.08358163,93360.0,93358.0,0.02491753]
[1735510994155,0.0667786,93360.0,93358.0,0.02491753]
[1735510995122,0.35259355,93360.0,93358.0,0.02491753]
[1735510995648,0.35259355,93360.0,93358.0,0.00615617]
[1735510997552,0.36939669,93360.0,93358.0,0.00615617]
[1735510998633,0.35259355,93360.0,93358.0,0.00615617]
[1735511001392,0.35259355,93360.0,93358.0,0.00115617]
[1735511001698,0.36939669,93360.0,93358.0,0.00115617]
[1735511002179,0.36939669,93360.0,93358.0,0.00124147]